Cogmind - Beta 14 @@@ ROGUE MODE // 2025.03.28 @ 00:36:36 Player: Bbenedict8 Result: Destroyed by G-34 Mercenary with Small Laser Performance ------------- Evolutions (0) 0 Regions Visited (1) 200 Robots Destroyed (14) 70 Value Destroyed (293) 293 Prototype IDs (0) 0 Alien Tech Used (0) 0 Bonus (0) 0 TOTAL SCORE: 563 Bonus ------- None Cogmind --------- Core Integrity 0/250 Matter 256/300 Energy 100/100 System Corruption 0% Temperature Cool (6) Movement Rolling (200) Ox8 Location -10/Materials Parts ------- > --- POWER (1) -------- (None) > --- PROPULSION (2) --- Wheel > --- UTILITY (2) ------ Huge Storage Unit Terrain Scanner > --- WEAPON (2) ------- Assault Rifle Assault Rifle > --- INVENTORY (25) --- Ion Engine Light Ion Engine Wheel Compact Wheel Small Storage Unit Large Matter Pod (150) Structural Scanner Sensor Array Seismic Detector Medium Laser Medium Laser Medium Laser Small Laser Assault Rifle Assault Rifle Grenade Launcher Peak State ------------ > --- POWER ------------ Light Ion Engine > --- PROPULSION ------- Compact Wheel Compact Wheel > --- UTILITY ---------- Huge Storage Unit Terrain Scanner > --- WEAPON ----------- Medium Laser Small Laser > --- INVENTORY -------- Ion Engine Wheel Wheel Compact Wheel Small Storage Unit Large Matter Pod Sensor Array Seismic Detector Medium Laser Grenade Launcher [Rating: 8] Favorites ----------- Power Light Ion Engine Engine Light Ion Engine Propulsion Compact Wheel Treads Light Treads Wheel Compact Wheel Utility Huge Storage Unit Device Terrain Scanner Storage Huge Storage Unit Weapon Small Laser Energy Gun Small Laser Ballistic Gun Assault Rifle Build | -11 -10 ------- Run | Yrd Mat Slots Evolved . | . . Power . | . . Propulsion . | . . Utility . | . . Weapon . | . . Parts Attached 18 | 9 9 Power 2 | 1 1 Engine 2 | 1 1 Core . | . . Reactor . | . . Propulsion 6 | 4 2 Treads 2 | 2 . Leg . | . . Wheel 4 | 2 2 Hover . | . . Flight . | . . Utility 4 | 2 2 Device 2 | 1 1 Storage 2 | 1 1 Processor . | . . Hackware . | . . Protection . | . . Artifact . | . . Weapon 6 | 2 4 Energy Gun 2 | 2 . Energy Cannon . | . . Ballistic Gun 4 | . 4 Ballistic Cannon . | . . Launcher . | . . Special Weapon . | . . Impact Weapon . | . . Slashing Weapon . | . . Piercing Weapon . | . . Special Melee Weapon . | . . Unidentified Prototypes . | . . Parts Lost 3 | . 3 Power 1 | . 1 Propulsion 2 | . 2 Utility . | . . Weapon . | . . Highest Loss Streak 2 | . 2 To Critical Strikes . | . . Average Slot Usage (%) 99 | . 99 Engine 13 | . 13 Wheel 27 | . 27 Device 14 | . 14 Storage 14 | . 14 Energy Gun 19 | . 19 Ballistic Gun 8 | . 8 Peak Build Rating 8 | 7 8 Average Rating 7 | 5 7 On Entrance 3 | . 7 Naked Turns . | . . Heaviest Build 90 | 12 90 Greatest Support 40 | 40 32 Greatest Overweight (x) 5 | . 5 Average Overweight (x) 1 | . 1 Largest Inventory Capacity 25 | 8 25 Average Capacity 18 | 7 20 Most Carried 16 | 4 16 Average Carried 9 | 3 10 Final Capacity 25 | 8 25 Final Carried 16 | 4 16 Class Distribution -------------------- 100% | Mutant Dominant Class ---------------- Mutant | -10/Materials Resources | -11 -10 ----------- Run | Yrd Mat Matter Collected 558 | 290 268 Remotely . | . . Salvage Created 430 | 94 336 Parts 32 | 6 26 Haulers Intercepted . | . . Recyclers Shooed . | . . Parts Field Recycled . | . . Retrieved Matter . | . . Parts Self-Destructed . | . . Prevented . | . . Kills | -11 -10 ------- Run | Yrd Mat Combat Hostiles Destroyed 9 | . 9 Guns 9 | . 9 Classes Destroyed 7 | 2 5 Worker 1 | . 1 Tunneler 1 | 1 . Recycler 1 | 1 . Operator 1 | . 1 Watcher 1 | . 1 Swarmer 3 | . 3 Grunt 6 | . 6 Best Kill Streak 3 | 2 3 Combat Bots Only 3 | . 3 Max Kills in Single Turn 1 | 1 1 Gunslinging . | . . Exploded . | . . Melee . | . . Uniques/NPCs Destroyed . | . . Combat | -11 -10 -------- Run | Yrd Mat Hostile Shots Fired 76 | . 76 Missed 16 | . 16 Damage Taken 718 | . 718 Core 250 | . 250 Absorbed by Shields . | . . Core Remaining (%) 100 | 100 . Volleys Fired 56 | 5 51 Largest 2 | 2 2 Hottest 90 | 90 90 Shots Fired 112 | 10 102 Gun 112 | 10 102 Cannon . | . . Launcher . | . . Special . | . . Kinetic 46 | . 46 Thermal 66 | 10 56 Explosive . | . . Electromagnetic . | . . Robot Hit Streak 16 | 2 16 Robot Miss Streak 3 | 2 3 Penetration Max . | . . Secondary Targets 1 | . 1 Max Gunslinging Chain 1 | . 1 Shots Hit Robots 73 | 6 67 Core Hits 28 | 3 25 Critical Kills . | . . Critical Parts Destroyed . | . . Critical Strikes 1 | . 1 Burn 1 | . 1 Melee Attacks . | . . Impact . | . . Slashing . | . . Piercing . | . . Sneak Attacks . | . . Combat Hostiles . | . . Follow-up Attacks . | . . Damage Inflicted 783 | 69 714 Guns 783 | 69 714 Cannons . | . . Explosions . | . . Melee . | . . Ramming . | . . Kinetic 350 | . 350 Thermal 433 | 69 364 Explosive . | . . Electromagnetic . | . . Impact . | . . Slashing . | . . Piercing . | . . Highest Corruption . | . . Average Corruption . | . . Corruption Purged . | . . Corruption Blocked . | . . Overload Shots . | . . Overflow Damage . | . . Projectiles . | . . Explosions . | . . Melee . | . . Knockbacks . | . . Impact . | . . Kinetic . | . . Secondary . | . . Self-Inflicted Damage . | . . Shots . | . . Rammed . | . . Targets Rammed . | . . Kicked . | . . Crushed . | . . Highest Temperature 188 | 60 188 Average Temperature 59 | 29 64 Received Heat Transfer 345 | . 345 Siege Activations . | . . Robots Corrupted . | . . Combat Hostiles . | . . Parts Fried . | . . Impact Corruptions . | . . Robots Melted . | . . Combat Hostiles . | . . Parts Melted 5 | . 5 Heat Transferred 1239 | 186 1053 Parts Sabotaged . | . . Parts Stolen . | . . Parts Stripped . | . . Power Chain Reactions . | . . Alert | -11 -10 ------- Run | Yrd Mat Peak Influence 158 | 10 158 Initial 6 | . 6 Average 87 | 2 106 Maximum Alert Level . | . . Low Security (%) 100 | 100 100 Level 1 . | . . Level 2 . | . . Level 3 . | . . Level 4 . | . . Level 5 . | . . High Security . | . . Max Security . | . . Squads Dispatched 1 | . 1 Investigation 1 | . 1 Extermination . | . . Reinforcement . | . . Assault . | . . Garrison . | . . Intercept . | . . Searches Triggered . | . . Construction Impeded . | . . Haulers Reinforced . | . . Active Scanning Responses . | . . Cargo Convoy Interrupts . | . . Stealth | -11 -10 --------- Run | Yrd Mat Distress Signals 1 | . 1 Communications Jammed . | . . Distress Signals . | . . Times Spotted 18 | . 18 Peak Tracking Total 3 | . 3 Tactical Retreats . | . . Traps | -11 -10 ------- Run | Yrd Mat Traps Triggered 1 | . 1 Indirectly . | . . Trap Hack Attempts . | . . Triggered . | . . Disarmed . | . . Reprogrammed . | . . Reused . | . . Traps Extracted . | . . Installed . | . . Triggered . | . . Machines | -11 -10 ---------- Run | Yrd Mat Machines Disabled . | . . Max in Single Turn . | . . Machines Repaired . | . . Machines Dismantled . | . . Machines Sabotaged . | . . Overloaded Fab Kills . | . . Hacking | -11 -10 --------- Run | Yrd Mat Machines Accessed 6 | . 6 Terminals 5 | . 5 Fabricators . | . . Repair Stations . | . . Recycling Units 1 | . 1 Scanalyzers . | . . Garrison Access . | . . Total Hacks 13 | . 13 Successful 5 | . 5 Failed 8 | . 8 Catastrophic 2 | . 2 Database Lockouts . | . . Manual . | . . Terminals 10 | . 10 Fabricators . | . . Repair Stations . | . . Recycling Units 3 | . 3 Scanalyzers . | . . Garrison Access . | . . Terminal Hacks 3 | . 3 Emergency Access Points 1 | . 1 Recycling Unit Index 1 | . 1 Hauler Manifests 1 | . 1 Fabricator Hacks . | . . Repair Station Hacks . | . . Recycling Unit Hacks 2 | . 2 Process 1 | . 1 Retrieve Components 1 | . 1 Scanalyzer . | . . Garrison Access Hacks . | . . Unauthorized Hacks . | . . Terminals . | . . Fabricators . | . . Repair Stations . | . . Recycling Units . | . . Scanalyzers . | . . Garrison Access . | . . Data Cores Recovered 1 | . 1 Used 1 | . 1 Hacking Detections 6 | . 6 Full Trace Events 1 | . 1 Feedback Events . | . . Feedback Blocked . | . . Robot Schematics Acquired . | . . Robots Built . | . . Authchips . | . . Time . | . . Total Robot Build Rating . | . . Part Schematics Acquired . | . . Parts Built . | . . Authchips . | . . Time . | . . Total Part Build Rating . | . . Parts Repaired . | . . Time . | . . Parts Recycled . | . . Recycled Matter 83 | . 83 Retrieved Matter . | . . Retrieved Components . | . . Parts Scanalyzed . | . . Part Schematics Acquired . | . . Parts Damaged . | . . Bothacking | -11 -10 ------------ Run | Yrd Mat Used RIF Installer . | . . Robots Hacked . | . . Non-combat . | . . Combat . | . . Robot Hacks Applied . | . . Relay Couplers Released . | . . Fabnet Peak Effective % . | . . Robots Rewired . | . . Allies Hacked . | . . Hacks Repelled . | . . Allies | -11 -10 -------- Run | Yrd Mat Total Allies . | . . Largest Group . | . . Highest-Rated Group . | . . Highest-Rated Ally . | . . Total Orders . | . . Ally Attacks . | . . Total Damage . | . . Kills . | . . Allies Corrupted . | . . Allies Melted . | . . Intel | -11 -10 ------- Run | Yrd Mat Robot Analysis Total . | . . Derelict Logs Recovered . | . . Drone Launches . | . . Drone Recoveries . | . . Exploration | -11 -10 ------------- Run | Yrd Mat Turns Passed 971 | 176 795 Spaces Moved 567 | 102 465 Core 2 | 2 . Treads 68 | 68 . Legs . | . . Wheels 497 | 32 465 Hover . | . . Flight . | . . Fastest Speed 50 | 50 90 Average Speed 118 | 135 115 Slowest Speed 175 | 160 175 Overloaded Moves . | . . Propulsion Burnouts . | . . Robots Hopped . | . . Cave-ins Triggered . | . . Exploration Rate (%) 31 | 7 56 Regions Visited 1 Branch Regions . Pre-discovered Areas . | . . Known Exits Taken . | . . Unknown Exits Taken 1 | 1 . Scrap Searched . | . . Spaces Dug . | . . Terrain Destroyed . | . . Melee . | . . Projectile . | . . AOE . | . . Terrain Rammed . | . . Walls Destroyed . | . . Machines Disabled . | . . Actions | -11 -10 --------- Run | Yrd Mat Total 752 | 126 626 Wait 90 | 3 87 Move 566 | 101 465 Hop . | . . Pick Up 18 | 6 12 Fast Attach 7 | 7 . Attach 3 | 2 1 Detach . | . . Swap 8 | . 8 Drop 4 | 2 2 Fire 56 | 5 51 Melee . | . . Ram . | . . Kick . | . . Crush . | . . Escape Stasis . | . . Rewire . | . . Trap . | . . Miscellaneous . | . . Route ------- -11/Scrapyard -10/Materials History --------- Turn | Location | Event 30 | -11/Scrapyard | Discovered new exit (range 15) 177 | -11/Scrapyard | Entered Materials 311 | -10/Materials | Build established: Mutant 736 | -10/Materials | Core integrity fell below 50% 953 | -10/Materials | Core integrity fell below 20% 972 | -10/Materials | Destroyed by G-34 Mercenary with Small Laser Last Messages --------------- >>Manifests Retrieving manifest data... Found 2 haulers: A-02 Transporter 3x Structural Scanner 3x Lrg. Storage Unit A-02 Transporter 6x Sml. Battery 00848_ Dropped Lgt. Assault Rifle. 00850_ Acquired Assault Rifle. 00855_ Acquired Structural Scanner. 00863_ R-06 Scavenger collects Aluminum Leg. 00868_ Triggered Explosive Trap. 00868_ An explosion rips through the floor. 00887_ Connecting with Terminal... 00917_ U-05 Engineer lays Concrete. 00928_ Acquired 20 matter. 00929_ U-05 Engineer builds a Wall. 00960_ Com. Wheel destroyed. 00966_ Ion Engine destroyed. Map ----- +----------------------------------------------------+ | ??????????????????????????????? ######## ## | | ?????????????????????????????? | | ?????????????????????????????? | | ?????????????????????????????? | | ??????????????????????????????? ############# | | ???????????????????????????????????????????????# | | ?????????????????????????????????#??????#??????# | | ?????????????????????????"?? ??????????????????# | | ??????????????????????????? ?????????????#?????# | | ?????????????????????????###############???????# | | ?????????????????????#?#?# #! #???????# | | ?????????????????????????# # %= ##??????# | | ??????????????#??????????# """ #| = #???????# | | ??????????????# ?????????#/ """ # = #?#?????# | | ??????????????# ????????# """ # #???????# | | ?????????????## ???????# # #???????# | | ????????????## ##########+######+########### | | ??????? ?????# | | ?????????????# ! | | ?????????????# =% * | | #????????????# #### #####+################## | | ???? ????????##???###?# ## ! = #?#??#???#???## | | ???#################### ## "*" #??#?????#?##?# | | ???# # T # ## " " #???#???#?????# | | ???? # """ #a## """ ############### | | ???# """ # """ #@## # ^ | | ???# """ # """ #g########## ^ [ | | ???# """ # + ^ * | | ???# "T" # # g ###+#####" | | ???# """ # # ######### # =*% ##"R | | ???# # # #####???????# = ##"" | | ???#########+########## !##??#????# "" #### | | ??????#?## % !###?#??## "Y #??# | | ?????????# !#???#???# "" #?## | | ??????######+###### #+#+# !#???????# #?# | | ???#??# # # !#?##??#?########?# | | ??????# """ # "T" # !##???#???##?#??#??# | | ??????# [ """ # ####????#????????????# | | ??????#"" """ # |! #?????????????#??????# | | ??????#"T # [ #???????#????????????# | | ??????#"" # ! [[#??#???#???#?????????# | | ??????# ########??????#?????????????# | | ??????#############????????????????#??????????## | | | | | | | | | | | | | | | +----------------------------------------------------+ Best States ------------- Heat Dissipation 25 Energy Generation 10 Energy Capacity 250 Matter Stores 300 Matter Capacity 300 Sight Range 16 Terrain Scan Range 14 Terrain Scan Density 10 Evasion (%) 42 Recoil Reduction 2 Item Schematics ----------------- None Robot Schematics ------------------ None Fabricated ------------ Nothing Alien Tech Used ----------------- None Achievements -------------- None Challenges ------------ None Game ------ Seed PropulsionPrecisionPlating Manual? 0 Play Time 00:13:29 Cumulative 28.1 hours Start 2025.03.28 @ 00:13:06 End 2025.03.28 @ 00:36:36 Sessions 3 Manual Loads 0 Difficulty Rogue Special Mode None Game No. 31 Rogue 29 Adventurer 2 Explorer 0 Win Type - Total 0 Types 0/0/0/0/0/0/0/0/0 Lore% 23 Gallery% 25 Achievement% 28 Wizard Run 0 Options --------- Layout 0 ASCII 0 Keyboard 0 Movement Mouse Keybinds 0 Fullscreen 1 Font 24/Smallcaps Map View 76x50 Zoom Use 0% Tactical HUD 1 Map Filters NONE Filters NONE Steam 1 RUN: b983b3c2-3b48-4c7d-9cfe-fb80f53a00c4